Cogmind - Beta 17 @@@ ROGUE MODE // 2026.06.23 @ 22:06:04 Player: OBLIQUE Result: Destroyed by NZ-UCA(j) with Overtuned Pulse Rifle Performance ------------- Evolutions (0) 0 Regions Visited (4) 800 Robots Destroyed (23) 115 Value Destroyed (486) 486 Prototype IDs (1) 20 Alien Tech Used (0) 0 Bonus (800) 800 TOTAL SCORE: 2221 Bonus ------- Registered with UFD 300 Met Optimus in HQ 500 Cogmind --------- Core Integrity 0/250 Matter 300/300 Energy 150/150 System Corruption 0% Temperature Cool (29) Movement Hovering (176) Ox2 Location -7/Scraptown Parts ------- > --- POWER (1) -------- Light Angular Momentum Engine > --- PROPULSION (2) --- Airjet Airjet > --- UTILITY (2) ------ Medium Storage Unit Hardened Medium Armor Plating > --- WEAPON (2) ------- Ripper Great Axe > --- INVENTORY (10) --- Makeshift Power Source Airjet Gravmag System Microactuators Improved Light Armor Plating A0-MCA's Component Scanner Dirty Datajack (20) Flail DM-GVY's Chainsaw Deploy-a-Sentry Peak State ------------ > --- POWER ------------ Light Angular Momentum Engine > --- PROPULSION ------- Armored Huge Wheel > --- UTILITY ---------- Humpback > --- WEAPON ----------- Ripper Great Axe > --- INVENTORY -------- Improved Deuterium Engine Improved Deuterium Engine Improved Deuterium Engine Makeshift Power Source Improved Titanium Leg Compact Wheel Compact Wheel Overtuned Scrapsphere Airjet Airjet Airjet Gravmag System Disposable Heat Sink Medium Storage Unit High-capacity Battery Microactuators Hardened Medium Armor Plating Improved Light Armor Plating Scrap Shield Scrap Shield Improved Shield Generator A0-MCA's Component Scanner Dirty Datajack Remote Datajack Hammer Mace Flail Mining Claw Mining Claw [Rating: 32] Favorites ----------- Power Light Angular Momentum Engine Engine Light Angular Momentum Engine Propulsion Spiked Treads Treads Spiked Treads Leg Myomer Leg Wheel Subdweller Monowheel Hover Unit Airjet Utility Humpback Device Terrain Scanner Storage Humpback Processor Terrain Scan Processor Protection Hardened Medium Armor Plating Weapon Subdweller Machine Gun Energy Gun EM Pulse Gun Energy Cannon Subdweller Beam Cannon Ballistic Gun Subdweller Machine Gun Ballistic Cannon Battle Cannon Launcher Grenade Launcher Special Weapon Flamer Impact Weapon Hammer Slashing Weapon Ripper Build | -11 -10 -10 -7 -7 ------- Run | Yrd Mat Sub Rec Scr Slots Evolved . | . . . . . Power . | . . . . . Propulsion . | . . . . . Utility . | . . . . . Weapon . | . . . . . Parts Attached 48 | 6 9 21 3 9 Power 5 | 1 . 4 . . Engine 5 | 1 . 4 . . Core . | . . . . . Reactor . | . . . . . Propulsion 17 | 2 2 8 2 3 Treads 1 | . . 1 . . Leg 1 | . . 1 . . Wheel 10 | 2 . 5 2 1 Hover 5 | . 2 1 . 2 Flight . | . . . . . Utility 8 | 1 3 2 . 2 Device 2 | . 2 . . . Storage 3 | 1 . 1 . 1 Processor 1 | . 1 . . . Hackware . | . . . . . Protection 2 | . . 1 . 1 Artifact . | . . . . . Weapon 18 | 2 4 7 1 4 Energy Gun 3 | 2 1 . . . Energy Cannon 2 | . . 1 1 . Ballistic Gun 4 | . . 4 . . Ballistic Cannon 1 | . . 1 . . Launcher 1 | . 1 . . . Special Weapon 2 | . . . . 2 Impact Weapon 1 | . . 1 . . Slashing Weapon 4 | . 2 . . 2 Piercing Weapon . | . . . . . Special Melee Weapon . | . . . . . Unidentified Prototypes . | . . . . . Parts Lost 9 | . 1 8 . . Power 2 | . . 2 . . Propulsion 3 | . 1 2 . . Utility 1 | . . 1 . . Weapon 3 | . . 3 . . Highest Loss Streak 2 | . 1 2 . . To Critical Strikes . | . . . . . Average Backups 23 | . 4 24 28 22 Power . | . . 1 . . Propulsion 3 | . . 3 5 3 Utility 9 | . . 9 12 9 Weapon 8 | . 2 8 10 7 Tool/Special . | . . . . . Unused Backups 41 | . 3 2 2 34 Power 5 | . 1 . . 4 Propulsion 4 | . . . . 4 Utility 17 | . 1 . . 16 Weapon 13 | . 1 2 2 8 Tool/Special 2 | . . . . 2 Average Slot Usage (%) 77 | . 97 76 71 79 Engine 13 | . 14 12 14 14 Treads 5 | . . 6 13 . Leg 3 | . . 6 . . Wheel 8 | . 15 8 1 13 Hover 2 | . 12 . . 6 Storage 13 | . 2 13 14 13 Energy Cannon 4 | . . 3 3 7 Ballistic Gun 14 | . . 19 14 7 Ballistic Cannon 1 | . . 3 . . Impact Weapon 2 | . . 1 10 . Slashing Weapon 3 | . 15 . . 10 Peak Build Rating 32 | 6 10 27 21 32 Average Rating 21 | 4 8 20 19 25 On Entrance 11 | . 6 10 19 20 Avg Prop Armor Cover (%) 7 | . 10 7 . . Naked Turns . | . . . . . Heaviest Build 221 | 13 15 217 221 221 Greatest Support 40 | 20 20 40 32 32 Greatest Overweight (x) 72 | . 1 72 13 7 Average Overweight (x) 7 | . . 12 9 5 Largest Inventory Capacity 35 | 8 8 35 35 35 Average Capacity 32 | 6 5 34 35 29 Most Carried 35 | 1 6 35 35 35 Average Carried 28 | . 4 29 34 25 Final Capacity 35 | 8 5 35 35 10 Final Carried 35 | 1 5 35 35 10 Class Distribution -------------------- 89% | Hauler-Mutant 5% | Derelict-Mutant Dominant Class ---------------- Mutant | -10/Materials Hauler-Mutant | -10/Subcaves Hauler-Mutant | -7/Recycling Hauler-Mutant | -7/Scraptown Resources | -11 -10 -10 -7 -7 ----------- Run | Yrd Mat Sub Rec Scr Matter Collected 927 | 260 110 307 140 110 Remotely . | . . . . . Salvage Created 1393 | . 241 310 842 . Parts 37 | . 20 10 7 . Haulers Intercepted 1 | . 1 . . . Recyclers Shooed 2 | . . . 2 . Parts Field Recycled . | . . . . . Retrieved Matter . | . . . . . Parts Self-Destructed 15 | . . 15 . . Prevented . | . . . . . Parts Restored . | . . . . . Kills | -11 -10 -10 -7 -7 ------- Run | Yrd Mat Sub Rec Scr Combat Hostiles Destroyed 13 | . 4 9 . . Melee 2 | . 2 . . . Guns 5 | . . 5 . . Cannons 4 | . . 4 . . AOE 2 | . 2 . . . Classes Destroyed 9 | . 6 2 1 . Builder 1 | . 1 . . . Tunneler 1 | . 1 . . . Hauler 1 | . 1 . . . Recycler 4 | . . . 4 . Watcher 3 | . 3 . . . Swarmer 4 | . 2 2 . . Grunt 3 | . 2 1 . . Sentry 1 | . . 1 . . Subdweller 5 | . . 5 . . Best Kill Streak 3 | . 3 2 2 . Combat Bots Only 2 | . 2 2 . . Max Kills in Single Turn 2 | . 2 1 1 . Gunslinging . | . . . . . Exploded 1 | . 1 . . . Melee 1 | . 1 . . . Uniques/NPCs Destroyed . | . . . . . Combat | -11 -10 -10 -7 -7 -------- Run | Yrd Mat Sub Rec Scr Hostile Shots Fired 111 | . 27 70 . 14 Missed 33 | . 11 18 . 4 Hits 78 | . 16 52 . 10 Projectile 78 | . 16 52 . 10 AOE 1 | . . 1 . . Critical Strikes 3 | . . 1 . 2 Damage Taken 1525 | . 131 1224 . 170 Core 263 | . 30 211 . 22 Absorbed by Shields . | . . . . . Core Remaining (%) 100 | 100 . . . . Volleys Fired 54 | . 7 43 4 . Largest 2 | . 2 2 2 . Hottest 113 | . 80 113 110 . Shots Fired 98 | . 13 77 8 . Gun 62 | . 11 47 4 . Cannon 34 | . . 30 4 . Launcher 2 | . 2 . . . Special . | . . . . . Kinetic 62 | . . 58 4 . Thermal 23 | . . 19 4 . Explosive 2 | . 2 . . . Electromagnetic 11 | . 11 . . . Robot Hit Streak 16 | . 7 10 16 . Robot Miss Streak 2 | . 1 2 1 . Penetration Max . | . . . . . Secondary Targets . | . . . . . Shots Hit Robots 82 | . 20 45 17 . Core Hits 27 | . 13 12 2 . Critical Kills . | . . . . . Critical Parts Destroyed 3 | . . . 3 . Critical Strikes 3 | . . . 3 . Smash 3 | . . . 3 . Melee Attacks 46 | . 16 14 11 5 Impact 25 | . . 14 11 . Slashing 21 | . 16 . . 5 Piercing . | . . . . . Sneak Attacks 5 | . 3 . 2 . Combat Hostiles . | . . . . . Follow-up Attacks 3 | . 3 . . . Damage Inflicted 2428 | . 653 1065 710 . Guns 675 | . 125 513 37 . Cannons 665 | . . 552 113 . Explosions 212 | . 212 . . . Melee 876 | . 316 . 560 . Ramming . | . . . . . Kinetic 711 | . . 674 37 . Thermal 598 | . 94 391 113 . Explosive 118 | . 118 . . . Electromagnetic 125 | . 125 . . . Impact 560 | . . . 560 . Slashing 316 | . 316 . . . Piercing . | . . . . . Highest Corruption . | . . . . . Average Corruption . | . . . . . Corruption Purged . | . . . . . Corruption Blocked . | . . . . . Overload Shots . | . . . . . Overflow Damage 294 | . 15 16 263 . Projectiles 16 | . . 16 . . Explosions . | . . . . . Melee 278 | . 15 . 263 . Knockbacks 2 | . . 1 1 . Impact 1 | . . . 1 . Kinetic 1 | . . 1 . . Secondary . | . . . . . Self-Inflicted Damage . | . . . . . Shots . | . . . . . Rammed . | . . . . . Targets Rammed . | . . . . . Kicked . | . . . . . Crushed . | . . . . . Highest Temperature 108 | . 36 6 108 32 Average Temperature 24 | . 13 4 42 12 Received Heat Transfer 332 | . 18 168 . 146 Siege Activations . | . . . . . Martial Activations . | . . . . . Shielding Activations . | . . . . . Robots Disrupted . | . . . . . Combat Hostiles . | . . . . . Robots Corrupted 6 | . . . 6 . Combat Hostiles . | . . . . . Parts Fried 10 | . . . 10 . Impact Corruptions 13 | . . . 13 . Robots Melted . | . . . . . Combat Hostiles . | . . . . . Parts Melted . | . . . . . Heat Transferred 816 | . 150 518 148 . Parts Sabotaged . | . . . . . Parts Stolen . | . . . . . Parts Stripped . | . . . . . Power Chain Reactions 2 | . 2 . . . Alert | -11 -10 -10 -7 -7 ------- Run | Yrd Mat Sub Rec Scr Maximum Alert Level . | . . . . . Low Security (%) 100 | 100 100 . 100 . Level 1 . | . . . . . Level 2 . | . . . . . Level 3 . | . . . . . Level 4 . | . . . . . Level 5 . | . . . . . High Security . | . . . . . Max Security . | . . . . . Peak Influence 53 | . 53 . 15 . Initial 15 | . . . 15 . Average 2 | . 12 . . . Influence Increases 383 | . 203 125 55 . Destroy 0b10 Robot/C 160 | . 80 80 . . Destroy 0b10 Robot/NC 85 | . 30 . 55 . Destroy Leader 28 | . 28 . . . Successful Hack 24 | . 24 . . . Destroy Structure 11 | . 11 . . . Lose Combat Pursuer 75 | . 30 45 . . Influence Decreases 383 | . 189 106 88 . Entered New Map 25 | . . 7 18 . Time Decay 328 | . 179 79 70 . Lost Part 30 | . 10 20 . . Squads Dispatched . | . . . . . Investigation . | . . . . . Extermination . | . . . . . Reinforcement . | . . . . . Assault . | . . . . . Garrison . | . . . . . Intercept . | . . . . . Searches Triggered . | . . . . . Construction Impeded . | . . . . . Haulers Reinforced . | . . . . . Active Scanning Responses . | . . . . . Cargo Convoy Interrupts . | . . . . . Stealth | -11 -10 -10 -7 -7 --------- Run | Yrd Mat Sub Rec Scr Distress Signals 2 | . 2 . . . Communications Jammed . | . . . . . Distress Signals . | . . . . . Times Spotted 44 | . 11 24 . 9 Peak Tracking Total 8 | . 3 6 . 8 Tactical Retreats 2 | . 1 1 . . Traps | -11 -10 -10 -7 -7 ------- Run | Yrd Mat Sub Rec Scr Traps Triggered 3 | . . 3 . . Indirectly . | . . . . . Trap Hack Attempts . | . . . . . Triggered . | . . . . . Disarmed . | . . . . . Reprogrammed . | . . . . . Reused . | . . . . . Traps Extracted . | . . . . . Installed . | . . . . . Triggered . | . . . . . Most Traps Carried 1 | . . 1 1 1 Machines | -11 -10 -10 -7 -7 ---------- Run | Yrd Mat Sub Rec Scr Machines Disabled 3 | . . . . 3 Max in Single Turn 1 | . . . . 1 Machines Repaired . | . . . . . Machines Dismantled . | . . . . . Machines Sabotaged . | . . . . . Overloaded Fab Kills . | . . . . . Hacking | -11 -10 -10 -7 -7 --------- Run | Yrd Mat Sub Rec Scr Machines Accessed 6 | . 2 1 1 2 Terminals 2 | . 2 . . . Fabricators . | . . . . . Repair Stations . | . . . . . Recycling Units 1 | . . . 1 . Scanalyzers . | . . . . . Garrison Access . | . . . . . Total Hacks 23 | . 13 5 1 4 Successful 17 | . 7 5 1 4 Failed 6 | . 6 . . . Catastrophic 1 | . 1 . . . Database Lockouts . | . . . . . Manual 6 | . 6 . . . Terminals 13 | . 13 . . . Fabricators . | . . . . . Repair Stations . | . . . . . Recycling Units 1 | . . . 1 . Scanalyzers . | . . . . . Garrison Access . | . . . . . Terminal Hacks 14 | . 5 5 . 4 Record 9 | . . 5 . 4 Robot Analysis 2 | . 2 . . . Locate Traps 1 | . 1 . . . Patrol Status 1 | . 1 . . . Registered Components 1 | . 1 . . . Fabricator Hacks . | . . . . . Repair Station Hacks . | . . . . . Recycling Unit Hacks 1 | . . . 1 . Report Inventory 1 | . . . 1 . Scanalyzer . | . . . . . Garrison Access Hacks . | . . . . . Unauthorized Hacks 2 | . 2 . . . Terminals 2 | . 2 . . . Botnet 1 | . 1 . . . Operators 1 | . 1 . . . Fabricators . | . . . . . Repair Stations . | . . . . . Recycling Units . | . . . . . Scanalyzers . | . . . . . Garrison Access . | . . . . . Data Cores Recovered . | . . . . . Used . | . . . . . Hacking Detections 3 | . 2 . 1 . Full Trace Events . | . . . . . Feedback Events . | . . . . . Feedback Blocked . | . . . . . Robot Schematics Acquired . | . . . . . Robots Built . | . . . . . Authchips . | . . . . . Time . | . . . . . Total Robot Build Rating . | . . . . . Part Schematics Acquired . | . . . . . Parts Built . | . . . . . Authchips . | . . . . . Time . | . . . . . Total Part Build Rating . | . . . . . Part Studies Acquired . | . . . . . Parts Repaired . | . . . . . Time . | . . . . . Parts Recycled . | . . . . . Recycled Matter . | . . . . . Retrieved Matter . | . . . . . Retrieved Components . | . . . . . Parts Scanalyzed . | . . . . . Part Schematics Acquired . | . . . . . Parts Damaged . | . . . . . Bothacking | -11 -10 -10 -7 -7 ------------ Run | Yrd Mat Sub Rec Scr Used RIF Installer . | . . . . . Robots Hacked . | . . . . . Non-combat . | . . . . . Combat . | . . . . . Robot Hacks Applied . | . . . . . Relay Couplers Released . | . . . . . Fabnet Peak Effective % . | . . . . . Robots Rewired . | . . . . . Allies Hacked . | . . . . . Hacks Repelled . | . . . . . Allies | -11 -10 -10 -7 -7 -------- Run | Yrd Mat Sub Rec Scr Total Allies . | . . . . . Largest Group . | . . . . . Highest-Rated Group . | . . . . . Highest-Rated Ally . | . . . . . Total Orders . | . . . . . Ally Attacks . | . . . . . Total Damage . | . . . . . Kills . | . . . . . Allies Corrupted . | . . . . . Allies Melted . | . . . . . Intel | -11 -10 -10 -7 -7 ------- Run | Yrd Mat Sub Rec Scr Active Infowar (turns) 608 | . 524 84 . . Terrain 608 | . 524 84 . . Robot Analysis Total 2 | . 2 . . . Derelict Logs Recovered 6 | . . 1 . 5 Drone Launches . | . . . . . Drone Recoveries . | . . . . . Exploration | -11 -10 -10 -7 -7 ------------- Run | Yrd Mat Sub Rec Scr Turns Passed 15912 | 51 613 7939 3252 4057 Spaces Moved 4432 | 57 510 1682 332 1851 Core 101 | 13 . 88 . . Treads 259 | . . 3 256 . Legs 264 | . . 264 . . Wheels 3193 | 44 307 1246 76 1520 Hover 615 | . 203 81 . 331 Flight . | . . . . . Fastest Speed 50 | 50 80 56 190 56 Average Speed 339 | 73 95 457 956 196 Slowest Speed 3650 | 80 120 3650 1260 205 Overloaded Moves . | . . . . . Propulsion Burnouts . | . . . . . Robots Hopped . | . . . . . Potential Cave-ins . | . . . . . Cave-ins Triggered . | . . . . . Exploration Rate (%) 57 | 3 63 88 43 91 Regions Visited 4 Branch Regions 3 Pre-discovered Areas 2 | . . . . 2 Known Exits Taken 1 | . . 1 . . Unknown Exits Taken 3 | 1 1 . 1 . Scrap Searched 11 | . . 6 . 5 Spaces Dug 4 | . . 3 . 1 Terrain Destroyed 17 | . 10 6 . 1 Melee 4 | . . 3 . 1 Projectile 3 | . . 3 . . AOE 10 | . 10 . . . Terrain Rammed . | . . . . . Walls Destroyed . | . . . . . Machines Disabled . | . . . . . Actions | -11 -10 -10 -7 -7 --------- Run | Yrd Mat Sub Rec Scr Total 5167 | 63 596 1833 381 2294 Wait 404 | . 35 22 26 321 Move 4428 | 56 509 1681 331 1851 Hop . | . . . . . Pick Up 90 | 1 13 31 2 43 Fast Attach 21 | 6 2 6 2 5 Attach 18 | . 3 9 . 6 Detach 15 | . . 7 . 8 Swap 18 | . 4 12 2 . Drop 76 | . 10 7 3 56 Fire 54 | . 7 43 4 . Melee 42 | . 13 14 11 4 Ram . | . . . . . Kick . | . . . . . Crush . | . . . . . Escape Stasis . | . . . . . Rewire . | . . . . . Trap . | . . . . . Miscellaneous 1 | . . 1 . . Route ------- -11/Scrapyard -10/Materials (discovered 3 exits: [*Mat] / [*Min] / *Sub) -10/Subcaves (discovered 3 exits: [*Mat x2] / *Rec) -7/Recycling (discovered 2 exits: [*Fac] / *Scr) -7/Scraptown (discovered 2 exits: [*Fac x2]) History --------- Turn | Location | Event 2 | -11/Scrapyard | Met Revision 17 24 | -11/Scrapyard | Discovered new exit (range 15) 52 | -11/Scrapyard | Entered Materials 162 | -10/Materials | Discovered new exit (range 7) 243 | -10/Materials | Discovered new exit (range 7) 269 | -10/Materials | Discovered new exit (range 15) 312 | -10/Materials | Build established: Mutant 665 | -10/Materials | Entered Subcaves 666 | -10/Subcaves | Build established: Scavenger-Mutant 734 | -10/Subcaves | Ambushed by swarm of Subdwellers 924 | -10/Subcaves | A swath of the cavern ceiling suddenly collapsed 1087 | -10/Subcaves | Build established: Hauler-Mutant 1484 | -10/Subcaves | A swath of the cavern ceiling suddenly collapsed 1947 | -10/Subcaves | Shifting Twisted Machinery released Sub. Machine Gun 2049 | -10/Subcaves | Shifting Twisted Machinery released Sub. Shrapnel Launcher 2714 | -10/Subcaves | Visited Clippyterm 2721 | -10/Subcaves | Identified exit to Recycling 2721 | -10/Subcaves | Learned Factory stockpile data 3122 | -10/Subcaves | Discovered new exit (range 15) 3185 | -10/Subcaves | Core integrity fell below 50% 3195 | -10/Subcaves | Discovered new exit (range 5) 3364 | -10/Subcaves | Learned Materials trap positions 4856 | -10/Subcaves | Core integrity fell below 20% 5033 | -10/Subcaves | Visited triangular shrine 5046 | -10/Subcaves | Found Prototype Device 8604 | -10/Subcaves | Entered Recycling 10227 | -7/Recycling | Discovered new exit (range 11) 10482 | -7/Recycling | Scanned before Scraplab entrance 11837 | -7/Recycling | Entered Scraplab 11853 | -7/Recycling | Discovered new exit (range 3) 11856 | -7/Recycling | Entered Scraptown 11961 | -7/Scraptown | Delivered Prototype Device to T0-NE2 in exchange for information 12031 | -7/Scraptown | Visited SPCMW 12075 | -7/Scraptown | Visited Awakened 12136 | -7/Scraptown | Visited Fellowship of the Rings 12174 | -7/Scraptown | Visited Comm Corps 12185 | -7/Scraptown | Visited Spacefarers 12281 | -7/Scraptown | Scanned Subdweller tech in exchange for log data 12287 | -7/Scraptown | Learned location of 2 exits from Factory 12289 | -7/Scraptown | Learned location of Extension (-5) 12291 | -7/Scraptown | Learned Research security intel 12293 | -7/Scraptown | Learned location of Armory (-3) 12295 | -7/Scraptown | Learned Research trap positions 12316 | -7/Scraptown | Discovered new exit (range 11) 13011 | -7/Scraptown | Visited Symbiants 13185 | -7/Scraptown | Visited UFD Registry 13185 | -7/Scraptown | Registered with UFD as "Metawalker" 13234 | -7/Scraptown | Visited Research Penetration Think Tank 13280 | -7/Scraptown | Visited DA-N13 Charitable Foundation 13298 | -7/Scraptown | Found DCF Scrap (26 items) 13335 | -7/Scraptown | Visited Junk Repository 13407 | -7/Scraptown | Delivered Scrap Shield to a Scientist 13603 | -7/Scraptown | Visited Junk Repository 13636 | -7/Scraptown | Visited Scrap Suit Storage 13694 | -7/Scraptown | Visited A0-MCA Data Center 13706 | -7/Scraptown | Given a B- rating by A0-MCA 13708 | -7/Scraptown | Found A0-MCA's Component Scanner 13738 | -7/Scraptown | Visited Curators Association 13805 | -7/Scraptown | Visited Scrapoid Pod Storage 13842 | -7/Scraptown | Visited Abandonware Association 13863 | -7/Scraptown | Learned abandonware demo "ERRANTS.EXE" 13912 | -7/Scraptown | Visited Observation Area 15290 | -7/Scraptown | Build established: Derelict-Mutant 15291 | -7/Scraptown | Discovered new exit (range 5) 15409 | -7/Scraptown | Met Optimus 15409 | -7/Scraptown | Accepted into 0bPrime 15809 | -7/Scraptown | Civil war broke out across Scraptown 15816 | -7/Scraptown | Found DM-GVY's Chainsaw 15827 | -7/Scraptown | Found Deploy-a-Sentry 15894 | -7/Scraptown | Lost 7 allies 15913 | -7/Scraptown | Destroyed by NZ-UCA(j) with Overtuned Pulse Rifle Last Messages --------------- 15817_ Dropped Imp. Shield Generator. 15821_ Enclosure breached. 15825_ GN-CBC(r) collects Mace. 15827_ Acquired Deploy-a-Sentry. 15829_ GN-CBC(r) collects Imp. Shield Generator. 15841_ Q2-F11(E): "To all who oppose us, at least your donations are appreciated." 15844_ Machine disabled. 15871_ Critical hit (Burn: +50). Optimus: You really should get out of here Metawalker. Scraptown is unimportant, the mission is important. Take the northeast exit, it's probably the safer route. Exit location confirmed. 15906_ 9G-OBG(r) destroyed. 15908_ Slug penetrates SD-MUG(j). 15908_ Slug penetrates 0M-EXN(x). 15908_ 0M-EXN(x) suffers critical hit (Destroy). 15908_ SD-MUG(j) destroyed. 15911_ Critical hit (Burn: +50). Map ----- +----------------------------------------------------+ | ?????????????????????????????????????????????????? | | ?????????????????????????????????????????????????? | | ?????????????????????????????????#####???????????? | | ?????????????????????????????????#"""#???????????? | | ??###################???########?#" "#???????????? | | ??"""##"""##""|##"""#??## ""# #?# <=#???????????? | | ?#"" ##""!##"" ##!!"#### !![####[!!##??????????? | | ?#"" !%= !%[!%=#??????????? | | ?# [%! *[ #??????????? | | ?####################### """########??????????? | | ???????????????????????## ##????????????????????? | | ????????????????????????# #??###??##????????????? | | ????????????????????????# #??#"###"#????????????? | | ??###########???????????# #### "!" ####?????????? | | ??#"""""""""#???????????# ; """ "#?????????? | | ??# " " " #???????????# !##"" ""#??????????? | | ??# #???????????#![## " "]#??????????? | | ??# "# #" ###########?#=%## " % ""##?????????? | | ??# "#X#" ##""""""" #?#!=#" "#?????????? | | ??# "###" ##" ! "#?# ## " ""##?????????? | | ??# """"" ##" "#?# x## " &#??????????? | | ??# ##" "#?# ##"" ""#??????????? | | ??# ##" "#?# #" "#?????????? | | ??##### ########### ###?# ## ######"###?????????? | | ####### ########### ##### ## #######"#####??????? | | """"""" """"""""""" "" ="@ " "## """""""""#?????? | | = =!%! jj"## ""!""""""#?????? | | ![! [%r![ "## """""""""#?????? | | %!=[ =!! ## """"#?????? | | = !%%%/ != "## """"#?????? | | !=!!!! 3 " """"#?????? | | """""""""""""![!%*= """" ## """""""""#?????? | | """"""""""""[!%[!!"""""" "## """""""""#?????? | | ##### ######==########" "##""""""""""#?????? | | ##????????#" =% ############??????? | | X"#????????#" / ## #"""""#????????? | | "" "" ##????????#""!! %! ## !!!!#????????? | | "" "" X"#??????###"%[%[!= ## ##"#?????? | | " " ######### #""=!%%! ## X" #?????? | | "" =!=!!*= #?????? | | "" ![ ![%"## #?????? | | " " ######### #"" =!"## !!!!! !#?????? | | "" "" ""#??????###"" "## #"""""#""#?????? | | "" "" ##????????#"" "#############?????? | | X"#????????#"" "#?????????????????? | | ##????????#"" "#?????????????????? | | ##### ################"" "########??????????? | | """"""""""""""""""""""""" "## *#??????????? | | """"""""""""""""""""""""" [#??????????? | | "## ####??????????? | +----------------------------------------------------+ Best States ------------- Heat Dissipation 25 Energy Generation 18 Energy Capacity 250 Matter Stores 300 Matter Capacity 300 Sight Range 16 Terrain Scan Range 16 Terrain Scan Density 85 Armor Coverage 800 Evasion (%) 53 Recoil Reduction 1 Item Schematics ----------------- None Robot Schematics ------------------ None Fabricated ------------ Nothing Repaired ---------- Nothing Studied --------- None Alien Tech Used ----------------- None Achievements -------------- None Challenges ------------ None Game ------ Seed ConceptDispersalClaw Manual? 0 Play Time 01:01:32 Cumulative 113.1 hours Start 2026.06.23 @ 20:55:26 End 2026.06.23 @ 22:06:04 Sessions 1 Manual Loads 0 Difficulty Rogue Special Mode None Game No. 67 Rogue 67 Adventurer 0 Explorer 0 Win Type - Total 1 Types 1/0/0/0/0/0/0/0/0/0 Lore% 59 Gallery% 51 Achievement% 45 Wizard Run 0 Options --------- Layout 1 ASCII 0 Keyboard 0 Movement Numpad Keybinds 0 Fullscreen 1 Font 24/Smallcaps Map View 50x35 Zoom Use 0% Tactical HUD 1 Map Filters NONE Filters NONE Steam 1 RUN: 3e43be13-4e5b-4e67-9776-37e109c4294d